fUST/lending_fUST_20251208
["ID","MTS","AMOUNT","RATE_DAILY","PERIOD"]
[397571399,1765206641161,-151.0,5.947e-05,2]
[397571401,1765206641170,-224.18142551,5.96e-05,2]
[397571403,1765206641179,-164.8,6e-05,2]
[397571405,1765206641189,-164.19,6e-05,2]
[397571407,1765206641198,-164.19,6e-05,2]
[397571409,1765206641207,-164.18,6e-05,2]
[397571411,1765206641217,-207.45339666,6.068e-05,2]
[397571413,1765206641226,-300.0,6.078e-05,2]
[397571415,1765206641236,-300.0,6.078e-05,2]
[397571417,1765206641245,-300.0,6.078e-05,2]
[397571419,1765206641255,-300.0,6.078e-05,2]
[397571421,1765206641264,-300.0,6.078e-05,2]
[397571423,1765206641274,-300.0,6.078e-05,2]
[397571425,1765206641283,-300.0,6.078e-05,2]
[397571427,1765206641292,-300.0,6.078e-05,2]
[397571429,1765206641301,-300.0,6.078e-05,2]
[397571431,1765206641310,-300.0,6.078e-05,2]
[397571433,1765206641319,-300.0,6.078e-05,2]
[397571434,1765206641329,-300.0,6.078e-05,2]
[397571437,1765206641339,-300.0,6.078e-05,2]
[397571438,1765206641348,-300.0,6.078e-05,2]
[397571440,1765206641357,-300.0,6.078e-05,2]
[397571443,1765206641366,-600.0,6.078e-05,2]
[397571445,1765206641376,-198.0,6.084e-05,2]
[397571446,1765206641389,-152.17,6.1e-05,2]
[397571448,1765206641398,-587.0,6.119e-05,2]
[397571450,1765206641406,-175.89354135,6.179e-05,2]
[397571452,1765206641415,-217.979,6.212e-05,2]
[397571454,1765206641424,-2674.60743027,6.279e-05,2]
[397571456,1765206641434,-207.45339666,6.319e-05,2]
[397571458,1765206641443,-152.17,6.4e-05,2]
[397571460,1765206641452,-207.45339666,6.569e-05,2]
[397571462,1765206641461,-152.17,6.6e-05,2]
[397571464,1765206641472,-720.0,6.686e-05,2]
[397571466,1765206641482,-823.0,6.731e-05,2]
[397571468,1765206641492,-152.17,6.8e-05,2]
[397571470,1765206641501,-207.66085005,6.819e-05,2]
[397571472,1765206641510,-2773.56790519,6.827e-05,2]
[397571474,1765206641519,-1596.68662637,6.85e-05,2]
[397571476,1765206641528,-632.25098133,6.865e-05,2]
[397571478,1765206641537,-2299.22874198,6.883e-05,2]
[397571480,1765206641546,-987.89215833,6.917e-05,2]
[397571482,1765206641555,-3129.50578769,6.918e-05,2]
[397571484,1765206641564,-273.164,6.953e-05,2]
[397571486,1765206641573,-378.42471897,6.957e-05,2]
[397571488,1765206641582,-152.17,7e-05,2]
[397571490,1765206641593,-248.11729201,7.011e-05,2]
[397571492,1765206641602,-319.33732527,7.028e-05,2]
[397571494,1765206641611,-320.27744941,7.039e-05,2]
[397571496,1765206641620,-197.57843167,7.045e-05,2]
[397571498,1765206641629,-766.7271901,7.047e-05,2]
[397571500,1765206641638,-1363.07056017,7.047e-05,2]
[397571502,1765206641647,-2129.79775026,7.047e-05,2]
[397571504,1765206641656,-3066.90876038,7.047e-05,2]
[397571506,1765206641666,-1119.12203832,7.047e-05,2]
[397571508,1765206641675,-1989.55029035,7.047e-05,2]
[397571510,1765206641684,-3108.67232867,7.047e-05,2]
[397571512,1765206641694,-4476.48815328,7.047e-05,2]
[397571514,1765206641703,-173.29654931,7.047e-05,2]
[397571516,1765206641712,-194.19561105,7.047e-05,2]
[397571517,1765206641721,-349.55209989,7.047e-05,2]
[397571519,1765206641730,-621.42595536,7.047e-05,2]
[397571521,1765206641739,-970.97805526,7.047e-05,2]
[397571523,1765206641748,-162.15909558,7.047e-05,2]
[397571525,1765206641757,-291.59448568,7.047e-05,2]
[397571527,1765206641766,-345.67839902,7.047e-05,2]
[397571528,1765206641775,-395.06102746,7.047e-05,2]
[397571529,1765206641784,-617.2828554,7.047e-05,2]
[397571530,1765206641793,-480.87507201,7.058e-05,2]
[397571531,1765206641803,-574.80718549,7.064e-05,2]
[397571532,1765206641814,-2160.05808563,7.071e-05,2]
[397571533,1765206641822,-525.03702936,7.071e-05,2]
[397571534,1765206641831,-672.75505594,7.078e-05,2]
[397571535,1765206641841,-355.641177,7.098e-05,2]
[397571536,1765206641850,-1021.87944088,7.1e-05,2]
[397571537,1765206641859,-210.23595498,7.197e-05,2]
[397571538,1765206641868,-175.89354135,7.199e-05,2]
[397571539,1765206641877,-1051.17977491,7.199e-05,2]
[397571540,1765206641886,-224.18142551,7.216e-05,2]
[397571541,1765206641895,-152.17,7.3e-05,2]
[397571542,1765206641904,-864.0,7.355e-05,2]
[397571543,1765206641913,-2876.18991768,7.375e-05,2]
[397571544,1765206641922,-1152.0,7.404e-05,2]
[397571545,1765206641931,-152.17,7.5e-05,2]
[397571546,1765206641939,-152.17,7.7e-05,2]
[397571547,1765206641948,-152.17,7.9e-05,2]
[397571548,1765206641957,-2982.60894464,7.923e-05,2]
[397571549,1765206641966,-160.0,8e-05,2]
[397571550,1765206641975,-159.0,8e-05,2]
[397571551,1765206641984,-159.0,8e-05,2]
[397571552,1765206641992,-1000.0,8.09e-05,2]
[397571553,1765206642001,-1039.0,8.144e-05,2]
[397571554,1765206642010,-348.27261817,8.2e-05,2]
[397571555,1765206642019,-152.17,8.2e-05,2]
[397571556,1765206642028,-1472.09,8.203e-05,2]
[397571557,1765206642037,-169.730852,8.219e-05,2]
[397571558,1765206642046,-2269.091079,8.219e-05,2]
[397571560,1765206642056,-500.0,8.219e-05,2]
[397571562,1765206642070,-500.0,8.219e-05,2]
[397571564,1765206642080,-500.0,8.219e-05,2]
[397571566,1765206642089,-500.0,8.219e-05,2]
[397571568,1765206642099,-500.0,8.219e-05,2]
[397571570,1765206642108,-500.0,8.219e-05,2]
[397571572,1765206642119,-500.0,8.219e-05,2]
[397571574,1765206642127,-500.0,8.219e-05,2]
[397571576,1765206642137,-500.0,8.219e-05,2]
[397571578,1765206642147,-500.0,8.219e-05,2]
[397571580,1765206642157,-500.0,8.219e-05,2]
[397571582,1765206642166,-500.0,8.219e-05,2]
[397571584,1765206642175,-500.0,8.219e-05,2]
[397571586,1765206642183,-500.0,8.219e-05,2]
[397571588,1765206642195,-500.0,8.219e-05,2]
[397571590,1765206642205,-500.0,8.219e-05,2]
[397571592,1765206642214,-500.0,8.219e-05,2]
[397571594,1765206642223,-500.0,8.219e-05,2]
[397571596,1765206642232,-500.0,8.219e-05,2]
[397571598,1765206642241,-602.26,8.219e-05,2]
[397571600,1765206642250,-806.26,8.219e-05,2]
[397571602,1765206642259,-628.33,8.219e-05,2]
[397571604,1765206642269,-500.0,8.219e-05,2]
[397571606,1765206642278,-798.97,8.219e-05,2]
[397571608,1765206642287,-848.49,8.219e-05,2]
[397571610,1765206642296,-500.35291492,8.219e-05,2]
[397571612,1765206642306,-1043.87,8.219e-05,2]
[397571614,1765206642315,-500.90365178,8.219e-05,2]
[397571616,1765206642324,-500.79092156,8.219e-05,2]
[397571618,1765206642334,-500.49433193,8.219e-05,2]
[397571620,1765206642343,-500.0,8.219e-05,2]
[397571622,1765206642352,-500.0,8.219e-05,2]
[397571624,1765206642361,-1697.48,8.219e-05,2]
[397571626,1765206642370,-500.0,8.219e-05,2]
[397571628,1765206642380,-500.0,8.219e-05,2]
[397571630,1765206642388,-1429.14,8.219e-05,2]
[397571632,1765206642398,-500.0,8.219e-05,2]
[397571634,1765206642407,-500.0,8.219e-05,2]
[397571636,1765206642416,-792.41,8.219e-05,2]
[397571638,1765206642425,-500.19539914,8.219e-05,2]
[397571640,1765206642434,-500.0,8.219e-05,2]
[397571642,1765206642443,-500.0,8.219e-05,2]
[397571644,1765206642453,-749.27,8.219e-05,2]
[397571646,1765206642462,-500.0,8.219e-05,2]
[397571648,1765206642471,-500.0,8.219e-05,2]
[397571650,1765206642481,-500.51435796,8.219e-05,2]
[397571652,1765206642489,-591.99108857,8.219e-05,2]
[397571654,1765206642498,-500.0,8.219e-05,2]
[397571656,1765206642508,-537.64,8.219e-05,2]
[397571657,1765206642517,-500.0,8.219e-05,2]
[397571659,1765206642526,-500.0,8.219e-05,2]
[397571660,1765206642535,-500.0,8.219e-05,2]
[397571662,1765206642546,-500.0,8.219e-05,2]
[397571664,1765206642555,-500.5017099,8.219e-05,2]
[397571666,1765206642564,-500.35531679,8.219e-05,2]
[397571668,1765206642574,-500.0,8.219e-05,2]
[397571670,1765206642584,-500.0,8.219e-05,2]
[397571672,1765206642593,-783.9,8.219e-05,2]
[397571674,1765206642602,-500.90174207,8.219e-05,2]
[397571676,1765206642612,-500.0,8.219e-05,2]
[397571678,1765206642621,-725.43,8.219e-05,2]
[397571680,1765206642633,-500.0,8.219e-05,2]
[397571682,1765206642642,-500.0,8.219e-05,2]
[397571684,1765206642652,-500.0,8.219e-05,2]
[397571686,1765206642661,-500.0,8.219e-05,2]
[397571687,1765206642671,-500.0,8.219e-05,2]
[397571689,1765206642680,-500.0,8.219e-05,2]
[397571691,1765206642690,-500.0,8.219e-05,2]
[397571693,1765206642699,-500.0,8.219e-05,2]
[397571695,1765206642709,-500.0,8.219e-05,2]
[397571698,1765206642719,-632.09488043,8.219e-05,2]
[397571700,1765206642728,-500.0,8.219e-05,2]
[397571703,1765206642738,-578.40897809,8.219e-05,2]
[397571706,1765206642747,-500.0,8.219e-05,2]
[397571708,1765206642756,-500.0,8.219e-05,2]
[397571711,1765206642766,-500.22247724,8.219e-05,2]
[397571714,1765206642776,-500.0,8.219e-05,2]
[397571716,1765206642786,-500.0,8.219e-05,2]
[397571718,1765206642795,-500.0,8.219e-05,2]
[397571720,1765206642804,-500.76369475,8.219e-05,2]
[397571722,1765206642814,-384.64427653,8.219e-05,2]
[397571724,1765206642823,-500.0,8.219e-05,2]
[397571725,1765206642833,-500.0,8.219e-05,2]
[397571727,1765206642842,-1034.25,8.219e-05,2]
[397571729,1765206642851,-500.0,8.219e-05,2]
[397571731,1765206642860,-209.15543178,8.219e-05,2]
[397571733,1765206642870,-500.0,8.219e-05,2]
[397571735,1765206642881,-525.99,8.219e-05,2]
[397571738,1765206642891,-500.0,8.219e-05,2]
[397571740,1765206642900,-645.58344303,8.219e-05,2]
[397571742,1765206642910,-666.67,8.219e-05,2]
[397571744,1765206642921,-500.0,8.219e-05,2]
[397571746,1765206642930,-657.63,8.219e-05,2]
[397571748,1765206642939,-500.0,8.219e-05,2]
[397571750,1765206642948,-500.0,8.219e-05,2]
[397571752,1765206642957,-500.0,8.219e-05,2]
[397571754,1765206642967,-500.0,8.219e-05,2]
[397571756,1765206642976,-500.41180264,8.219e-05,2]
[397571758,1765206642985,-500.0,8.219e-05,2]
[397571760,1765206642994,-500.0,8.219e-05,2]
[397571762,1765206643003,-658.03,8.219e-05,2]
[397571763,1765206643013,-500.0,8.219e-05,2]
[397571765,1765206643022,-683.44,8.219e-05,2]
[397571767,1765206643032,-500.0,8.219e-05,2]
[397571769,1765206643041,-500.0,8.219e-05,2]
[397571771,1765206643050,-1212.1,8.219e-05,2]
[397571773,1765206643061,-500.0,8.219e-05,2]
[397571775,1765206643072,-500.0,8.219e-05,2]
[397571777,1765206643082,-500.0,8.219e-05,2]
[397571779,1765206643091,-500.0,8.219e-05,2]
[397571781,1765206643101,-500.0,8.219e-05,2]
[397571783,1765206643111,-500.0,8.219e-05,2]
[397571785,1765206643120,-500.0,8.219e-05,2]
[397571787,1765206643131,-521.04500194,8.219e-05,2]
[397571810,1765206643340,-522.25,8.219e-05,2]
[397571812,1765206643350,-469.12068094,8.219e-05,2]
[397571853,1765206643739,-30.87931906,8.219e-05,2]
[397571855,1765206643749,-500.0,8.219e-05,2]
[397571857,1765206643758,-550.3,8.219e-05,2]
[397571859,1765206643768,-500.0,8.219e-05,2]
[397571861,1765206643777,-500.0,8.219e-05,2]
[397571863,1765206643786,-500.0,8.219e-05,2]
[397571865,1765206643797,-500.0,8.219e-05,2]
[397571867,1765206643806,-500.0,8.219e-05,2]
[397571869,1765206643815,-500.0,8.219e-05,2]
[397571871,1765206643824,-500.0,8.219e-05,2]
[397571873,1765206643833,-742.78,8.219e-05,2]
[397571875,1765206643843,-1572.88,8.219e-05,2]
[397571877,1765206643852,-469.42716931,8.219e-05,2]
[397571879,1765206643861,-500.0,8.219e-05,2]
[397571881,1765206643871,-500.0,8.219e-05,2]
[397571883,1765206643883,-500.0,8.219e-05,2]
[397571885,1765206643892,-500.0,8.219e-05,2]
[397571887,1765206643902,-500.0,8.219e-05,2]
[397571889,1765206643912,-500.94162531,8.219e-05,2]
[397571891,1765206643922,-827.36,8.219e-05,2]
[397571892,1765206643931,-2562.3810077,8.219e-05,2]
[397571895,1765206643944,-458.9508,8.219e-05,2]
[397571897,1765206643956,-259.5881923,8.219e-05,2]
[397571899,1765206643965,-500.0,8.219e-05,2]
[397571901,1765206643974,-500.0,8.219e-05,2]
[397571903,1765206643984,-283.62324435,8.219e-05,2]
[397571962,1765206644699,-1303.35675565,8.219e-05,2]
[397571964,1765206644709,-500.0,8.219e-05,2]
[397571965,1765206644718,-137.19410646,8.219e-05,2]
[397571968,1765206644730,-362.80589354,8.219e-05,2]
[397571970,1765206644739,-500.0,8.219e-05,2]
[397571972,1765206644748,-641.54430646,8.219e-05,2]
[397572113,1765206646125,-501.01569354,8.219e-05,2]
[397572115,1765206646137,-500.0,8.219e-05,2]
[397572117,1765206646147,-597.79,8.219e-05,2]
[397572119,1765206646157,-500.0,8.219e-05,2]
[397572121,1765206646166,-500.0,8.219e-05,2]
[397572123,1765206646176,-500.0,8.219e-05,2]
[397572125,1765206646185,-500.0,8.219e-05,2]
[397572127,1765206646195,-12.10708543,8.219e-05,2]
[397572139,1765206646304,-487.89291457,8.219e-05,2]
[397572141,1765206646313,-500.0,8.219e-05,2]
[397572143,1765206646324,-2001.11,8.219e-05,2]
[397572146,1765206646333,-2609.89,8.219e-05,2]
[397572147,1765206646342,-522.2,8.219e-05,2]
[397572150,1765206646352,-729.14,8.219e-05,2]
[397572152,1765206646361,-500.0,8.219e-05,2]
[397572154,1765206646371,-1223.9,8.219e-05,2]
[397572155,1765206646380,-500.0,8.219e-05,2]
[397572157,1765206646393,-500.0,8.219e-05,2]
[397572159,1765206646402,-2031.38,8.219e-05,2]
[397572161,1765206646411,-1277.89,8.219e-05,2]
[397572163,1765206646420,-621.31,8.219e-05,2]
[397572165,1765206646430,-500.0,8.219e-05,2]
[397572167,1765206646439,-500.0,8.219e-05,2]
[397572169,1765206646448,-718.05,8.219e-05,2]
[397572171,1765206646457,-500.0,8.219e-05,2]
[397572173,1765206646466,-500.0,8.219e-05,2]
[397572175,1765206646475,-728.43,8.219e-05,2]
[397572177,1765206646484,-500.0,8.219e-05,2]
[397572179,1765206646493,-310.54100374,8.219e-05,2]
[397575080,1765206677804,164.31,5e-05,2]
[397578102,1765206710591,8920.58,4.96e-05,2]
[397578106,1765206710620,10000.01,4.96e-05,2]
[397578111,1765206710648,10000.01,4.96e-05,2]
[397578114,1765206710676,10000.01,4.96e-05,2]
[397578118,1765206710704,10000.01,4.96e-05,2]
[397578122,1765206710732,10000.01,4.96e-05,2]
[397578126,1765206710760,10000.01,4.96e-05,2]
[397578130,1765206710785,10000.01,4.96e-05,2]
[397578134,1765206710813,10000.01,4.96e-05,2]
[397578138,1765206710839,10000.01,4.96e-05,2]
[397578142,1765206710874,791079.33,4.96e-05,2]
[397581974,1765207190786,5000.0,5.01e-05,2]
[397581978,1765207327020,963.63518554,5.01e-05,2]
[397581983,1765207627103,-206.88305261,5.053e-05,2]
[397581984,1765207627131,-389.75332107,5.077e-05,2]
[397581985,1765207627159,-300.0,5.152e-05,2]
[397581986,1765207627187,-300.0,5.152e-05,2]
[397581987,1765207627216,-1200.0,5.153e-05,2]
[397581988,1765207627246,-300.0,5.153e-05,2]
[397581989,1765207627274,-1200.0,5.154e-05,2]
[397581990,1765207627302,-300.0,5.154e-05,2]
[397581991,1765207627330,-300.0,5.154e-05,2]
[397581992,1765207627357,-500.0,5.155e-05,2]
[397581993,1765207627389,-500.0,5.155e-05,2]
[397581994,1765207627418,-500.0,5.155e-05,2]
[397581995,1765207627445,-500.0,5.155e-05,2]
[397581996,1765207627468,-527.4220014,5.155e-05,2]
[397581997,1765207627491,-500.0,5.155e-05,2]
[397581998,1765207627513,-500.0,5.155e-05,2]
[397581999,1765207627537,-500.0,5.155e-05,2]
[397582000,1765207627558,-500.0,5.155e-05,2]
[397582001,1765207627581,-500.0,5.155e-05,2]
[397582002,1765207627972,-500.0,5.155e-05,2]
[397582003,1765207628004,-500.0,5.156e-05,2]
[397582004,1765207628025,-405.60243728,5.156e-05,2]
[397582005,1765207628050,-500.0,5.156e-05,2]
[397582006,1765207628074,-500.0,5.156e-05,2]
[397582007,1765207628098,-500.0,5.156e-05,2]
[397582008,1765207628123,-478.51398515,5.156e-05,2]
[397582009,1765207628149,-500.0,5.156e-05,2]
[397582010,1765207628174,-500.0,5.156e-05,2]
[397582011,1765207628195,-296.06072671,5.156e-05,2]
[397582012,1765207628222,-500.0,5.156e-05,2]
[397582013,1765207628250,-500.0,5.156e-05,2]
[397582014,1765207628276,-500.0,5.156e-05,2]
[397582015,1765207628303,-500.0,5.156e-05,2]
[397582016,1765207628331,-500.0,5.156e-05,2]
[397582017,1765207628356,-500.0,5.156e-05,2]
[397582018,1765207628383,-500.0,5.156e-05,2]
[397582019,1765207628406,-500.0,5.156e-05,2]
[397582020,1765207628432,-300.0,5.157e-05,2]
[397582021,1765207628458,-300.0,5.157e-05,2]
[397582022,1765207628484,-300.0,5.157e-05,2]
[397582023,1765207628510,-300.0,5.157e-05,2]
[397582024,1765207628546,-300.0,5.157e-05,2]
[397582025,1765207628570,-300.0,5.157e-05,2]
[397582026,1765207628595,-300.0,5.157e-05,2]
[397582027,1765207628619,-300.0,5.157e-05,2]
[397582028,1765207628643,-300.0,5.157e-05,2]
[397582029,1765207628667,-300.0,5.157e-05,2]
[397582030,1765207628691,-300.0,5.157e-05,2]
[397582031,1765207628714,-300.0,5.157e-05,2]
[397582032,1765207628739,-300.0,5.157e-05,2]
[397582033,1765207628763,-300.0,5.157e-05,2]
[397582034,1765207628787,-300.0,5.157e-05,2]
[397582035,1765207628810,-600.0,5.157e-05,2]
[397582036,1765207628836,-500.0,5.307e-05,2]
[397582037,1765207628860,-500.0,5.307e-05,2]
[397582038,1765207628882,-500.0,5.307e-05,2]
[397582039,1765207628905,-500.0,5.307e-05,2]
[397582040,1765207628927,-500.0,5.307e-05,2]
[397582041,1765207628950,-500.0,5.307e-05,2]
[397582042,1765207628973,-500.0,5.307e-05,2]
[397582043,1765207628999,-500.0,5.307e-05,2]
[397582044,1765207629022,-500.0,5.307e-05,2]
[397582045,1765207629046,-500.0,5.307e-05,2]
[397582046,1765207629070,-604.38036254,5.307e-05,2]
[397582047,1765207629094,-371.09802583,5.307e-05,2]
[397582048,1765207629121,-2487.15318209,5.307e-05,2]
[397582049,1765207629145,-300.0,5.667e-05,2]
[397582050,1765207629168,-420.0,5.667e-05,2]
[397582051,1765207629194,-720.0,5.673e-05,2]
[397582052,1765207629218,-2579.17784983,5.855e-05,2]
[397582053,1765207629241,-2155.0,6.076e-05,2]
[397582054,1765207629262,-631.0,6.076e-05,2]
[397582055,1765207629285,-1359.0,6.076e-05,2]
[397582056,1765207629307,-415.0,6.076e-05,2]
[397582057,1765207629333,-864.0,6.24e-05,2]
[397582058,1765207629355,-2674.60743027,6.403e-05,2]
[397582059,1765207629383,-1000.0,6.864e-05,2]
[397582060,1765207629408,-2773.56790519,6.951e-05,2]
[397582061,1765207629430,-218.532,6.953e-05,2]
[397582062,1765207629453,-459.90891887,7.077e-05,2]
[397582063,1765207629475,-2876.18991768,7.499e-05,2]
[397582064,1765207629502,-1000.0,7.551e-05,2]
[397582065,1765207629524,-244.0,7.551e-05,2]
[397582066,1765207629545,-1344.44661639,8.047e-05,2]
[397582067,1765207629573,-12748.55058664,8.119e-05,2]
[397582071,1765207764484,692.19804156,0.00010959,7]
[397582072,1765207828992,10000.0,0.00015,30]
[397582129,1765207832483,-506.0,5.952e-05,2]
[397582131,1765207832493,-372.76007628,5.953e-05,2]
[397582132,1765207832502,-137.94866444,6.608e-05,2]
[397582142,1765207833487,-220.46941146,6.608e-05,2]
[397582143,1765207833497,-4434.4703266,6.608e-05,2]
[397582144,1765207833507,-300.0,6.739e-05,2]
[397582145,1765207833519,-300.0,6.739e-05,2]
[397582146,1765207833530,-300.0,6.739e-05,2]
[397582147,1765207833540,-300.0,6.739e-05,2]
[397582148,1765207833549,-300.0,6.739e-05,2]
[397582149,1765207833559,-300.0,6.739e-05,2]
[397582150,1765207833568,-300.0,6.739e-05,2]
[397582151,1765207833578,-300.0,6.739e-05,2]
[397582152,1765207833587,-300.0,6.739e-05,2]
[397582153,1765207833596,-300.0,6.739e-05,2]
[397582154,1765207833605,-300.0,6.739e-05,2]
[397582155,1765207833615,-300.0,6.739e-05,2]
[397582156,1765207833624,-300.0,6.739e-05,2]
[397582157,1765207833635,-279.36016706,7.463e-05,2]
[397582220,1765207838735,-300.0,6.739e-05,2]
[397582222,1765207838745,-300.0,6.739e-05,2]
[397582224,1765207838756,-600.0,6.873e-05,2]
[397582226,1765207838765,-20.63983294,7.463e-05,2]
[397582228,1765207838774,-4434.4703266,7.464e-05,2]
[397582230,1765207838785,-720.0,7.56e-05,2]
[397582232,1765207838795,-358.4180759,7.596e-05,2]
[397582234,1765207838804,-439.85689001,7.953e-05,2]
[397582236,1765207838813,-500.0,8.118e-05,2]
[397582238,1765207838822,-330.94599835,8.118e-05,2]
[397582240,1765207838831,-19137.41351494,8.119e-05,2]
[397582243,1765207838844,-894.61203176,8.119e-05,2]
[397582245,1765207838855,-1163.0827225,8.119e-05,2]
[397582249,1765207838933,-3384.10053643,8.119e-05,2]
[397582250,1765207838944,-772.04249589,8.119e-05,2]
[397582251,1765207838957,-651.5443167,8.119e-05,2]
[397582252,1765207838968,-2420.1853518,8.119e-05,2]
[397582253,1765207838979,-282.83175995,8.119e-05,2]
[397582254,1765207838990,-25536.05690122,8.119e-05,2]
[397582439,1765207840758,-30.26134272,8.119e-05,2]
[397582442,1765207840781,-15072.1001,8.119e-05,2]
[397582445,1765207840802,-3835.21292739,8.119e-05,2]
[397582703,1765207843666,2348.95,0.00015,30]
[397583082,1765207847683,-591945.91178038,8.119e-05,2]
[397583084,1765207847693,-1000.0,8.119e-05,2]
[397583086,1765207847702,-1000.0,8.119e-05,2]
[397583088,1765207847711,-1000.0,8.119e-05,2]
[397583090,1765207847720,-897.23201777,8.119e-05,2]
[397583092,1765207847729,-250.0,8.218e-05,2]
[397583094,1765207847739,-169.730852,8.219e-05,2]
[397583096,1765207847748,-1890.909232,8.219e-05,2]
[397583098,1765207847757,-500.0,8.219e-05,2]
[397583100,1765207847766,-500.0,8.219e-05,2]
[397583101,1765207847776,-500.0,8.219e-05,2]
[397583102,1765207847785,-498.00001581,8.219e-05,2]
[397583103,1765207847794,-519.44903107,8.219e-05,2]
[397583104,1765207847803,-500.0,8.219e-05,2]
[397583105,1765207847812,-398.69377421,8.219e-05,2]
[397583106,1765207847821,-500.0,8.219e-05,2]
[397583107,1765207847830,-596.9,8.219e-05,2]
[397583108,1765207847839,-500.0,8.219e-05,2]
[397583109,1765207847848,-500.0,8.219e-05,2]
[397583110,1765207847856,-500.0,8.219e-05,2]
[397583111,1765207847865,-500.16162568,8.219e-05,2]
[397583112,1765207847874,-1223.81,8.219e-05,2]
[397583113,1765207847884,-500.0,8.219e-05,2]
[397583114,1765207847893,-500.0,8.219e-05,2]
[397583115,1765207847904,-500.0,8.219e-05,2]
[397583116,1765207847913,-500.0,8.219e-05,2]
[397583117,1765207847922,-500.0,8.219e-05,2]
[397583118,1765207847931,-694.78,8.219e-05,2]
[397583119,1765207847941,-856.37,8.219e-05,2]
[397583120,1765207847950,-500.0,8.219e-05,2]
[397583122,1765207847958,-500.39581025,8.219e-05,2]
[397583124,1765207847968,-500.87963516,8.219e-05,2]
[397583126,1765207847977,-500.0,8.219e-05,2]
[397583128,1765207847986,-371.94861138,8.219e-05,2]
[397583130,1765207847995,-1000.0,8.219e-05,2]
[397583132,1765207848004,-500.0,8.219e-05,2]
[397583134,1765207848013,-500.0,8.219e-05,2]
[397583136,1765207848023,-500.0,8.219e-05,2]
[397583138,1765207848032,-500.0,8.219e-05,2]
[397583140,1765207848042,-500.3583166,8.219e-05,2]
[397583142,1765207848051,-500.0,8.219e-05,2]
[397583144,1765207848060,-1094.95,8.219e-05,2]
[397583146,1765207848070,-500.0,8.219e-05,2]
[397583148,1765207848079,-500.63671959,8.219e-05,2]
[397583150,1765207848088,-873.78,8.219e-05,2]
[397583152,1765207848097,-500.0,8.219e-05,2]
[397583154,1765207848106,-500.96968092,8.219e-05,2]
[397583156,1765207848116,-500.0,8.219e-05,2]
[397583158,1765207848126,-500.0,8.219e-05,2]
[397583160,1765207848135,-500.30493163,8.219e-05,2]
[397583162,1765207848145,-500.18782722,8.219e-05,2]
[397583164,1765207848156,-500.0,8.219e-05,2]
[397583166,1765207848166,-500.0,8.219e-05,2]
[397583168,1765207848176,-500.0,8.219e-05,2]
[397583170,1765207848185,-500.0,8.219e-05,2]
[397583172,1765207848195,-500.0,8.219e-05,2]
[397583174,1765207848205,-500.0,8.219e-05,2]
[397583176,1765207848215,-500.0,8.219e-05,2]
[397583178,1765207848224,-688.13,8.219e-05,2]
[397583180,1765207848233,-500.0,8.219e-05,2]
[397583182,1765207848242,-1789.65,8.219e-05,2]
[397583184,1765207848252,-500.0,8.219e-05,2]
[397583186,1765207848261,-500.0,8.219e-05,2]
[397583188,1765207848271,-500.0,8.219e-05,2]
[397583190,1765207848279,-500.0,8.219e-05,2]
[397583192,1765207848288,-1076.88,8.219e-05,2]
[397583194,1765207848298,-500.0,8.219e-05,2]
[397583196,1765207848307,-500.0,8.219e-05,2]
[397583198,1765207848316,-500.0,8.219e-05,2]
[397583200,1765207848325,-500.0,8.219e-05,2]
[397583202,1765207848335,-500.4414219,8.219e-05,2]
[397583204,1765207848344,-500.0,8.219e-05,2]
[397583206,1765207848355,-500.0,8.219e-05,2]
[397583208,1765207848364,-500.0,8.219e-05,2]
[397583210,1765207848374,-500.0,8.219e-05,2]
[397583211,1765207848383,-500.0,8.219e-05,2]
[397583214,1765207848395,-500.0,8.219e-05,2]
[397583215,1765207848407,-468.65861202,8.219e-05,2]
[397583217,1765207848416,-500.0,8.219e-05,2]
[397583219,1765207848426,-500.0,8.219e-05,2]
[397583221,1765207848435,-500.0,8.219e-05,2]
[397583223,1765207848444,-500.0,8.219e-05,2]
[397583225,1765207848453,-500.0,8.219e-05,2]